bitfinex/quotes_BTCUSD_20240617
["timestamp","ask_amount","ask_price","bid_price","bid_amount"]
[1718609730952,1.5803135,66288.0,66287.0,0.009383]
[1718609731206,1.4803135,66288.0,66287.0,0.009383]
[1718609731418,1.0339005,66288.0,66287.0,0.009383]
[1718609731631,1.04123901,66288.0,66287.0,0.009383]
[1718609732268,0.33022067,66288.0,66287.0,0.009383]
[1718609732484,0.33022067,66288.0,66287.0,0.141583]
[1718609732694,0.93364667,66288.0,66287.0,0.141583]
[1718609735283,1.54825967,66288.0,66287.0,0.009383]
[1718609735924,1.64825967,66288.0,66287.0,0.009383]
[1718609736127,1.80034746,66288.0,66287.0,0.009383]
[1718609736553,1.70034746,66288.0,66287.0,0.009383]
[1718609736759,1.80034746,66288.0,66287.0,0.009383]
[1718609737601,2.10206046,66288.0,66287.0,0.009383]
[1718609737808,2.17506046,66288.0,66287.0,0.009383]
[1718609738017,1.77334746,66288.0,66287.0,0.009383]
[1718609738429,1.87334746,66288.0,66287.0,0.009383]
[1718609739528,2.22506046,66288.0,66287.0,0.009383]
[1718609739740,2.32506046,66288.0,66287.0,0.009383]
[1718609740392,1.90697037,66283.0,66282.0,0.009405]
[1718609740603,2.58200205,66283.0,66282.0,0.009405]
[1718609740815,3.00376622,66283.0,66282.0,0.009405]
[1718609741027,3.32850222,66283.0,66282.0,0.009405]
[1718609742138,3.02676622,66283.0,66282.0,0.009405]
[1718609742358,3.17885401,66283.0,66282.0,0.009405]
[1718609742578,2.50821022,66283.0,66282.0,0.009405]
[1718609742824,2.41721022,66283.0,66282.0,0.010405]
[1718609743027,2.10409922,66283.0,66282.0,0.010405]
[1718609743235,2.25618701,66283.0,66282.0,0.010405]
[1718609743880,2.37018701,66283.0,66282.0,0.011405]
[1718609744286,2.68327905,66283.0,66282.0,0.011405]
[1718609744717,2.37018701,66283.0,66282.0,0.011405]
[1718609744936,2.27018701,66283.0,66282.0,0.011405]
[1718609745156,0.18374096,66283.0,66282.0,0.011405]
[1718609745360,0.03165317,66283.0,66282.0,0.147605]
[1718609745568,0.18252117,66283.0,66282.0,0.147605]
[1718609745805,0.03165317,66283.0,66282.0,0.600216]
[1718609746024,0.03165317,66283.0,66282.0,0.8670894]
[1718609746240,0.03165317,66283.0,66282.0,1.1688304]
[1718609746241,0.023,66283.0,66282.0,1.1688304]
[1718609746496,0.023,66283.0,66282.0,1.59576593]
[1718609746703,0.023,66283.0,66282.0,1.076757]
[1718609746919,0.023,66283.0,66282.0,1.20194515]
[1718609747092,0.009,66283.0,66282.0,1.20094515]
[1718609747557,0.02079837,66292.0,66287.0,0.150858]
[1718609747788,0.00865368,66291.0,66287.0,0.150858]
[1718609748767,0.00865368,66291.0,66287.0,0.155858]
[1718609748952,0.00865368,66291.0,66287.0,0.150858]
[1718609749167,0.00865368,66291.0,66285.0,0.452585]
[1718609749369,0.00865368,66291.0,66286.0,0.27605027]
[1718609749564,0.00865368,66291.0,66286.0,0.150861]
[1718609749805,0.00865368,66291.0,66290.0,0.452556]
[1718609750226,0.07790389,66292.0,66290.0,0.452556]
[1718609750490,0.07790389,66292.0,66291.0,0.15085]
[1718609750699,0.00865326,66291.0,66289.0,0.150853]
[1718609750901,0.07690389,66292.0,66289.0,0.150853]
[1718609751108,0.07690389,66292.0,66290.0,0.001]
[1718609751314,0.00865984,66291.0,66290.0,0.001]
[1718609751527,0.00865984,66291.0,66287.0,0.005]
[1718609751963,0.00865984,66291.0,66286.0,0.15086]
[1718609752379,0.00865984,66291.0,66289.0,0.003]
[1718609752810,0.15951084,66291.0,66289.0,0.003]
[1718609753100,0.17944921,66291.0,66289.0,0.003]
[1718609753335,0.00865984,66291.0,66289.0,0.003]
[1718609753914,0.00865984,66291.0,66286.0,0.15086]
[1718609754181,0.00865984,66291.0,66290.0,0.001]
[1718609754392,0.00865984,66291.0,66287.0,0.005]
[1718609754803,0.00865984,66291.0,66289.0,0.002]
[1718609755003,0.150852,66290.0,66282.0,0.622143]
[1718609755183,0.150852,66290.0,66286.0,0.007]
[1718609755393,0.00867762,66289.0,66286.0,0.007]
[1718609755910,0.150868,66283.0,66282.0,0.320405]
[1718609756121,0.22691189,66283.0,66282.0,0.009405]
[1718609756320,0.5373236,66283.0,66282.0,0.009405]
[1718609756442,0.85899797,66283.0,66282.0,0.009405]
[1718609756683,0.55726197,66283.0,66282.0,0.009405]
[1718609757109,0.85899797,66283.0,66282.0,0.009405]
[1718609757542,0.5373236,66283.0,66282.0,0.009405]
[1718609757765,0.85899797,66283.0,66282.0,0.009405]
[1718609757976,0.85999797,66283.0,66282.0,0.018405]
[1718609758190,1.13825786,66283.0,66282.0,0.018405]
[1718609758405,1.13825786,66283.0,66282.0,0.023405]
[1718609758406,1.13925786,66283.0,66282.0,0.023405]
[1718609758617,0.55826197,66283.0,66282.0,0.014405]
[1718609758820,0.5383236,66283.0,66282.0,0.019405]
[1718609759021,0.16054371,66283.0,66282.0,0.019405]
[1718609759226,0.46227971,66283.0,66282.0,0.019405]
[1718609761864,0.00967571,66283.0,66282.0,0.019405]
[1718609762089,0.00967571,66283.0,66282.0,0.170275]
[1718609762261,0.00967571,66283.0,66282.0,0.472016]
[1718609762465,0.001,66283.0,66282.0,0.773757]
[1718609762662,0.001,66283.0,66282.0,0.1288322]
[1718609762864,0.001,66283.0,66282.0,0.019405]
[1718609763074,0.63392888,66283.0,66282.0,0.019405]
[1718609763427,1.55048085,66283.0,66282.0,0.019405]
[1718609763702,0.95866467,66283.0,66282.0,0.019405]
[1718609763932,0.93566467,66283.0,66282.0,0.019405]
[1718609764171,0.93466467,66283.0,66282.0,0.014405]
[1718609764377,0.93466467,66283.0,66282.0,0.015405]
[1718609764593,0.94166467,66283.0,66282.0,0.010405]
[1718609764853,0.9797912,66283.0,66282.0,0.009405]
[1718609765036,0.9877912,66283.0,66282.0,0.010405]
[1718609765740,0.9797912,66283.0,66282.0,0.009405]
[1718609765955,1.44161499,66283.0,66282.0,0.010405]
[1718609766165,1.90025626,66283.0,66282.0,0.010405]
[1718609766397,2.15898263,66283.0,66282.0,0.009405]
[1718609766854,2.340199,66283.0,66282.0,0.010405]
[1718609767103,3.79267455,66283.0,66282.0,0.010405]
[1718609767321,3.79267729,66283.0,66282.0,0.010405]
[1718609767746,3.79272506,66283.0,66282.0,0.010405]
[1718609767988,3.80072506,66283.0,66282.0,0.011405]
[1718609768216,4.40437577,66283.0,66282.0,0.011405]
[1718609768436,4.34628948,66283.0,66282.0,0.010405]
[1718609768678,4.33828948,66283.0,66282.0,0.009405]
[1718609768905,3.78016569,66283.0,66282.0,0.010405]
[1718609769114,3.42422272,66283.0,66282.0,0.010405]
[1718609769518,3.43822272,66283.0,66282.0,0.010405]
[1718609770841,3.38706642,66283.0,66282.0,0.010405]
[1718609771089,2.55869821,66283.0,66282.0,0.010405]
[1718609771324,1.51456259,66283.0,66282.0,0.010405]
[1718609771548,1.48060067,66283.0,66282.0,0.010405]
[1718609771796,1.30840067,66283.0,66282.0,0.010405]
[1718609772649,0.95666467,66283.0,66282.0,0.010405]
[1718609772866,1.18929191,66283.0,66282.0,0.010405]
[1718609774134,1.2653358,66283.0,66282.0,0.010405]
[1718609774353,0.03029851,66283.0,66282.0,0.010405]
[1718609774576,0.03029851,66283.0,66282.0,0.326705]
[1718609774786,0.03029851,66283.0,66282.0,0.477575]
[1718609775016,0.022,66283.0,66282.0,0.477575]
[1718609775435,0.03026633,66283.0,66282.0,0.477575]
[1718609775655,0.02226633,66283.0,66282.0,0.476575]
[1718609775864,0.150857,66288.0,66282.0,0.476575]
[1718609776073,0.15086,66287.0,66282.0,0.325705]
[1718609776291,0.007,66283.0,66282.0,0.325705]
[1718609776502,0.455604,66283.0,66282.0,0.153905]
[1718609776711,0.80218064,66283.0,66282.0,0.009405]
[1718609776953,0.78224227,66283.0,66282.0,0.009405]
[1718609777166,0.78556575,66283.0,66282.0,0.009405]
[1718609777587,1.08730175,66283.0,66282.0,0.009405]
[1718609777782,1.08430175,66283.0,66282.0,0.009405]
[1718609778230,1.08430175,66283.0,66282.0,0.010405]
[1718609778789,1.08830175,66283.0,66282.0,0.009405]
[1718609778995,1.09130175,66283.0,66282.0,0.009405]
[1718609779403,1.08730175,66283.0,66282.0,0.009405]
[1718609779605,1.08430175,66283.0,66282.0,0.009405]
[1718609779816,1.08730175,66283.0,66282.0,0.009405]
[1718609780020,1.09130175,66283.0,66282.0,0.009405]
[1718609780804,1.49547733,66283.0,66282.0,0.009405]
[1718609781214,1.79721333,66283.0,66282.0,0.009405]
[1718609781433,1.79021333,66283.0,66282.0,0.009405]
[1718609781787,1.79721333,66283.0,66282.0,0.009405]
[1718609782208,1.79321333,66283.0,66282.0,0.009405]
[1718609782412,2.34463307,66283.0,66282.0,0.009405]
[1718609782612,2.67733307,66283.0,66282.0,0.009405]
[1718609782813,2.73848054,66283.0,66282.0,0.010405]
[1718609782985,3.27911654,66283.0,66282.0,0.010405]
[1718609783144,3.29311654,66283.0,66282.0,0.010405]
[1718609783345,3.25392027,66283.0,66282.0,0.009405]
[1718609783557,3.34444027,66283.0,66282.0,0.009405]
[1718609783966,3.04270427,66283.0,66282.0,0.009405]
[1718609784859,3.04321132,66283.0,66282.0,0.009405]
[1718609785075,3.05721132,66283.0,66282.0,0.009405]
[1718609785286,3.50437927,66283.0,66282.0,0.009405]
[1718609786595,3.51837927,66283.0,66282.0,0.010405]
[1718609787476,3.40565674,66283.0,66282.0,0.010405]
[1718609788131,3.5183704,66283.0,66282.0,0.010405]
[1718609788964,3.70739274,66283.0,66282.0,0.010405]
[1718609789592,3.70724787,66283.0,66282.0,0.010405]
[1718609789807,4.60951582,66283.0,66282.0,1e-06]
[1718609790015,0.37081037,66281.0,66280.0,0.009344]
[1718609790230,3.27881135,66281.0,66280.0,0.009344]
[1718609790440,4.94076846,66281.0,66280.0,0.009344]
[1718609791080,1.939724,66276.0,66252.0,0.1431]
[1718609791292,4.21997083,66276.0,66249.0,0.1443]
[1718609791510,5.17017392,66276.0,66249.0,0.1443]
[1718609791733,5.17843794,66276.0,66249.0,0.1443]
[1718609792148,4.85902959,66276.0,66275.0,0.010383]
[1718609792399,4.87302959,66276.0,66275.0,0.010383]
[1718609792611,5.19218163,66276.0,66275.0,0.010383]
[1718609793031,5.20618163,66276.0,66275.0,0.010383]
[1718609793248,5.19218163,66276.0,66275.0,1e-06]
[1718609793463,3.03005837,66269.0,66247.0,0.1724]
[1718609793664,4.25206859,66269.0,66247.0,0.1724]
[1718609793874,4.26031678,66269.0,66247.0,0.1724]
[1718609794082,4.64775301,66269.0,66245.0,0.1419]
[1718609794294,4.64775301,66269.0,66225.0,0.12]
[1718609794295,0.46935837,66264.0,66263.0,2.7e-07]
[1718609794509,2.51747279,66264.0,66263.0,2.7e-07]
[1718609794772,3.2689277,66264.0,66263.0,2.7e-07]
[1718609794985,3.57899889,66264.0,66263.0,2.7e-07]
[1718609795211,3.88082189,66264.0,66263.0,2.7e-07]
[1718609795455,3.92488526,66264.0,66263.0,2.7e-07]
[1718609795657,4.31232149,66264.0,66263.0,2.7e-07]
[1718609796128,3.93888526,66264.0,66263.0,2.7e-07]
[1718609796336,3.92488526,66264.0,66263.0,2.7e-07]
[1718609796555,3.9270341,66264.0,66263.0,2.7e-07]
[1718609796773,3.9410341,66264.0,66263.0,2.7e-07]
[1718609796986,3.9550341,66264.0,66263.0,2.7e-07]
[1718609797441,3.6392111,66264.0,66263.0,2.7e-07]
[1718609797868,3.6532111,66264.0,66263.0,2.7e-07]
[1718609798089,3.6392111,66264.0,66263.0,2.7e-07]
[1718609798333,3.6252111,66264.0,66263.0,2.7e-07]
[1718609798606,3.95519801,66264.0,66263.0,2.7e-07]
[1718609799050,4.06769312,66264.0,66263.0,2.7e-07]
[1718609799246,1.07661937,66245.0,66244.0,0.13926027]
[1718609799507,1.22870716,66245.0,66244.0,0.13926027]
[1718609799699,1.23694968,66245.0,66244.0,0.13926027]
[1718609800696,1.21701131,66245.0,66244.0,0.13926027]
[1718609800905,1.23694968,66245.0,66244.0,0.13926027]
[1718609801917,1.23894968,66245.0,66244.0,0.13926027]
[1718609802576,1.39103747,66245.0,66244.0,0.13926027]
[1718609802789,0.452949,66233.0,66226.0,0.150997]
[1718609803025,0.15922301,66232.0,66227.0,0.60725836]
[1718609803238,0.00823901,66232.0,66229.0,0.150989]
[1718609803444,0.00823901,66232.0,66229.0,0.2989]
[1718609803663,0.150979,66234.0,66230.0,0.2989]
[1718609803892,0.150979,66234.0,66233.0,0.1667]
[1718609804095,0.150979,66234.0,66233.0,0.3074]
[1718609804326,0.452938,66234.0,66233.0,0.3074]
[1718609804771,0.150979,66234.0,66233.0,0.3074]
[1718609805220,0.452938,66234.0,66233.0,0.3074]
[1718609805644,0.001,66234.0,66233.0,0.3074]
[1718609806050,0.002,66234.0,66233.0,0.3074]
[1718609806267,0.151979,66234.0,66233.0,0.3074]
[1718609806468,0.001,66234.0,66233.0,1.06231]
[1718609806688,0.01021602,66234.0,66233.0,0.459382]
[1718609806913,0.002,66234.0,66233.0,0.3084]
[1718609807128,0.01021602,66234.0,66233.0,0.3084]
[1718609807349,0.002,66234.0,66233.0,0.3084]
[1718609807553,0.01021761,66234.0,66233.0,0.3084]
[1718609808178,0.00197778,66234.0,66233.0,0.761346]
[1718609808399,0.01993837,66249.0,66237.0,0.301945]
[1718609808624,0.30979172,66245.0,66238.0,0.1395]
[1718609808850,0.150966,66240.0,66238.0,0.1395]
[1718609809065,0.07604389,66239.0,66238.0,0.1395]
[1718609809269,0.08392149,66239.0,66238.0,0.1395]
[1718609809499,0.23488949,66239.0,66238.0,0.1395]
[1718609810171,0.08392149,66239.0,66238.0,0.1395]
[1718609810386,0.08392149,66239.0,66238.0,0.1405]
[1718609811034,0.0078776,66239.0,66238.0,0.1697414]
[1718609811348,0.22698189,66253.0,66247.0,0.150948]
[1718609811574,0.22698189,66253.0,66247.0,0.3225]
[1718609811575,0.07604389,66253.0,66247.0,0.3225]
[1718609811816,0.452884,66242.0,66241.0,0.134]
[1718609812040,0.150968,66239.0,66238.0,0.001]
[1718609812272,0.1588383,66239.0,66238.0,0.001]
[1718609812501,0.7627103,66239.0,66238.0,0.001]
[1718609812709,0.452911,66238.0,66237.0,0.134]
[1718609813139,0.46078098,66238.0,66237.0,0.134]
[1718609814041,0.76272198,66238.0,66237.0,0.134]
[1718609814241,0.76272198,66238.0,66237.0,0.137]
[1718609815370,1.08460135,66238.0,66237.0,0.137]
[1718609815577,1.08460135,66238.0,66237.0,0.003]
[1718609815805,1.06466298,66238.0,66237.0,0.003]
[1718609816021,1.06566298,66238.0,66237.0,0.003]
[1718609816253,1.08560135,66238.0,66237.0,0.003]
[1718609817323,1.39887426,66238.0,66237.0,0.003]
[1718609818725,1.37893589,66238.0,66237.0,0.003]
[1718609820360,0.47311289,66238.0,66237.0,0.3268]
[1718609820625,0.77505389,66238.0,66237.0,0.3268]
[1718609820793,0.47311289,66238.0,66237.0,0.3268]
[1718609821040,0.47311289,66238.0,66237.0,0.3595735]
[1718609821299,0.00886998,66238.0,66237.0,0.5105465]
[1718609821485,0.00886998,66238.0,66237.0,1.25972162]
[1718609821690,0.00886998,66238.0,66237.0,1.23972162]
[1718609821691,0.001,66238.0,66237.0,1.23972162]
[1718609822313,0.001,66238.0,66237.0,1.56166762]
[1718609822774,0.001,66238.0,66237.0,1.25972162]
[1718609822982,0.001,66238.0,66237.0,1.62106335]
[1718609823192,0.001,66238.0,66237.0,1.56166762]
[1718609823193,0.00081837,66238.0,66237.0,1.56166762]
[1718609823601,0.00081837,66238.0,66237.0,1.471194]
[1718609823823,0.00081837,66238.0,66237.0,1.77314]
[1718609825041,0.00081837,66238.0,66237.0,1.75314]
[1718609825260,0.07604389,66252.0,66245.0,0.3205]
[1718609825451,0.07604389,66252.0,66246.0,0.452852]
[1718609825652,0.0078709,66251.0,66248.0,0.150945]
[1718609826032,0.07604389,66252.0,66249.0,0.150945]
[1718609826252,0.07604389,66252.0,66251.0,0.452823]
[1718609826513,0.07704389,66252.0,66251.0,0.150941]
[1718609826716,0.07704389,66252.0,66250.0,0.3049]
[1718609827139,0.07604389,66252.0,66251.0,0.08874027]
[1718609827341,0.07604389,66252.0,66251.0,0.150941]
[1718609828312,0.07604389,66252.0,66250.0,0.455842]
[1718609828516,0.07604389,66252.0,66250.0,0.3049]
[1718609829624,0.07604389,66252.0,66251.0,0.301882]
[1718609829824,0.07604389,66252.0,66251.0,0.452823]
[1718609830334,0.07704389,66252.0,66251.0,0.5588843]
[1718609830740,0.001,66252.0,66251.0,0.5588843]
[1718609830947,0.001,66252.0,66251.0,0.8607663]
[1718609831365,0.001,66252.0,66251.0,0.754705]
[1718609832395,0.001,66252.0,66251.0,1.056587]
[1718609832598,0.001,66252.0,66251.0,1.191487]
[1718609833437,0.001,66252.0,66251.0,1.365487]
[1718609834773,0.001,66252.0,66251.0,1.063605]
[1718609836061,0.002,66252.0,66251.0,1.068605]
[1718609836240,0.001,66252.0,66251.0,1.068605]
[1718609836431,0.22696489,66260.0,66254.0,0.150932]
[1718609836648,0.00790929,66259.0,66255.0,0.150931]
[1718609838258,0.00790929,66259.0,66258.0,0.6037]
[1718609838482,0.00790929,66259.0,66258.0,0.754625]
[1718609838686,0.00085,66264.0,66258.0,0.30185]
[1718609838893,0.00085,66264.0,66262.0,0.150914]
[1718609839093,0.00791107,66263.0,66260.0,0.301837]
[1718609839298,0.00791107,66263.0,66261.0,0.150916]
[1718609839523,0.00791107,66263.0,66262.0,0.150916]
[1718609840135,0.00085,66264.0,66261.0,0.1716]
[1718609840339,0.07604389,66262.0,66261.0,0.322518]
[1718609840594,0.07604389,66262.0,66261.0,0.624354]
[1718609841140,0.07604389,66262.0,66261.0,0.452754]
[1718609841376,0.07604389,66262.0,66261.0,0.150918]
[1718609841604,0.08395484,66262.0,66260.0,0.15092]
[1718609841817,0.08395484,66262.0,66261.0,0.001]
[1718609841818,0.08895484,66262.0,66261.0,0.001]
[1718609842451,0.08981484,66262.0,66261.0,0.003]
[1718609842658,0.08981484,66262.0,66261.0,0.57394203]
[1718609842862,0.08190389,66262.0,66261.0,0.27210603]
[1718609843105,0.07690389,66262.0,66261.0,0.27110603]
[1718609844967,0.07690389,66262.0,66261.0,0.002]
[1718609845386,0.08481878,66262.0,66261.0,0.002]
[1718609845849,0.87980515,66262.0,66261.0,0.002]
[1718609846066,2.03738894,66262.0,66261.0,0.002]
[1718609846315,2.35054171,66262.0,66261.0,0.002]
[1718609846520,2.50727439,66262.0,66261.0,0.002]
[1718609846740,0.150959,66243.0,66242.0,0.1462]
[1718609847185,0.00791118,66243.0,66242.0,0.1462]
[1718609847389,0.150963,66241.0,66240.0,0.1769]
[1718609847629,0.45289,66241.0,66240.0,0.1769]
[1718609847846,0.45289,66241.0,66239.0,0.1431]
[1718609847847,0.00791054,66241.0,66239.0,0.1431]
[1718609848081,0.150959,66243.0,66239.0,0.1431]
[1718609848310,0.30984301,66240.0,66236.0,0.1683]
[1718609848540,0.52894789,66239.0,66235.0,0.1452]
[1718609848744,0.83878304,66239.0,66233.0,0.000935]
[1718609849193,0.53684704,66239.0,66233.0,0.000935]
[1718609849656,0.53684704,66239.0,66238.0,0.005946]
[1718609850086,0.53684704,66239.0,66238.0,0.000946]
[1718609850520,0.53684704,66239.0,66238.0,0.004946]
[1718609850740,0.53684704,66239.0,66238.0,0.005946]
[1718609851185,0.00789915,66239.0,66238.0,0.005946]
[1718609851408,0.00789915,66239.0,66238.0,0.1727019]
[1718609851619,0.00789915,66239.0,66238.0,0.0217319]
[1718609851842,0.07604389,66246.0,66239.0,0.301935]
[1718609852075,0.07604389,66246.0,66239.0,0.452902]
[1718609852296,0.07604389,66246.0,66238.0,0.0217319]
[1718609852297,0.150959,66243.0,66238.0,0.0217319]
[1718609852509,0.150959,66243.0,66239.0,0.04746579]
[1718609853149,0.150959,66243.0,66239.0,0.05046579]
[1718609853416,0.150959,66243.0,66239.0,0.05146579]
[1718609853632,0.150959,66243.0,66239.0,0.04846579]
[1718609853861,0.150959,66243.0,66239.0,0.04746579]
[1718609854102,0.150959,66243.0,66239.0,0.001]
[1718609854323,0.150961,66242.0,66239.0,0.001]
[1718609854536,0.150963,66242.0,66239.0,0.001]
[1718609855179,0.150966,66240.0,66239.0,0.004]
[1718609855620,0.301928,66241.0,66239.0,0.001]
[1718609855621,0.150964,66241.0,66239.0,0.001]
[1718609856051,0.150964,66241.0,66239.0,0.004]
[1718609856264,0.150964,66241.0,66239.0,0.003]
[1718609856474,0.150964,66241.0,66238.0,0.000946]
[1718609856701,0.150964,66241.0,66239.0,0.001]
[1718609856916,0.150964,66241.0,66239.0,0.003]
[1718609857336,0.150965,66241.0,66239.0,0.004]
[1718609857543,0.150965,66241.0,66239.0,0.003]
[1718609857750,0.150966,66240.0,66239.0,0.003]
[1718609857968,0.150962,66242.0,66239.0,0.003]
[1718609858349,0.150964,66241.0,66238.0,0.000946]
[1718609858750,0.150964,66241.0,66239.0,0.003]
[1718609859537,0.150964,66241.0,66238.0,0.000946]
[1718609859763,0.150964,66241.0,66239.0,0.001]
[1718609860630,0.150964,66241.0,66238.0,0.004946]
[1718609860828,0.150964,66241.0,66238.0,0.005946]
[1718609861269,0.37795189,66246.0,66238.0,0.0509275]
[1718609861270,0.30191,66245.0,66238.0,0.0509275]
[1718609861485,0.150961,66242.0,66239.0,0.001]
[1718609861695,0.37795189,66246.0,66239.0,0.001]
[1718609861914,0.30191,66245.0,66239.0,0.004]
[1718609862131,0.15096,66243.0,66239.0,0.004]
[1718609862351,0.150962,66242.0,66240.0,0.05038495]
[1718609862581,0.301916,66244.0,66240.0,0.05038495]
[1718609862795,0.15096,66243.0,66240.0,0.05038495]
[1718609863436,0.37795189,66246.0,66240.0,0.05038495]
[1718609863639,0.150958,66244.0,66240.0,0.05038495]
[1718609863839,0.150958,66244.0,66238.0,0.0469275]
[1718609864057,0.150959,66243.0,66238.0,0.0469275]
[1718609864262,0.150959,66243.0,66240.0,0.001]
[1718609865096,0.150959,66243.0,66238.0,0.0469275]
[1718609865314,0.150959,66243.0,66240.0,0.002]
[1718609865520,0.150961,66242.0,66240.0,0.002]
[1718609865736,0.15096,66243.0,66240.0,0.002]
[1718609865952,0.15096,66243.0,66238.0,0.000946]
[1718609866187,0.15096,66243.0,66240.0,0.002]
[1718609866423,0.15096,66243.0,66240.0,0.003]
[1718609866665,0.00788257,66242.0,66240.0,0.003]
[1718609866884,0.00788257,66242.0,66240.0,0.002]
[1718609867097,0.00788257,66242.0,66238.0,0.001946]
[1718609867301,0.00788257,66242.0,66238.0,0.005946]
[1718609867509,0.00788257,66242.0,66238.0,0.004946]
[1718609867926,0.00788257,66242.0,66240.0,0.001]
[1718609868133,0.00788257,66242.0,66238.0,0.155916]
[1718609868620,0.00788257,66242.0,66238.0,0.152916]
[1718609869030,0.15096,66243.0,66240.0,0.002]
[1718609869232,0.00788278,66242.0,66240.0,0.002]
[1718609869437,0.00788278,66242.0,66238.0,0.152916]
[1718609869638,0.15096,66243.0,66238.0,0.152916]
[1718609869841,0.15096,66243.0,66238.0,0.156916]
[1718609870065,0.15096,66243.0,66238.0,0.155916]
[1718609870353,0.00788257,66242.0,66240.0,0.001]
[1718609870734,0.00788257,66242.0,66238.0,0.000946]
[1718609871094,0.00788257,66242.0,66238.0,0.001946]
[1718609871298,0.00788257,66242.0,66238.0,0.000946]
[1718609871495,0.00788257,66242.0,66239.0,0.0506]
[1718609871819,0.00788257,66242.0,66240.0,0.0514468]
[1718609872581,0.150957,66244.0,66240.0,0.0514468]
[1718609872791,0.00788235,66241.0,66240.0,0.0514468]
[1718609873001,0.150957,66244.0,66240.0,0.0514468]
[1718609873184,0.00788235,66241.0,66239.0,0.0506]
[1718609873397,0.150957,66244.0,66239.0,0.0506]
[1718609873605,0.00788182,66240.0,66239.0,0.201568]
[1718609873815,0.150957,66244.0,66239.0,0.201568]
[1718609874066,0.00788204,66240.0,66239.0,0.2823085]
[1718609874238,0.150957,66244.0,66240.0,0.001]
[1718609874659,0.150955,66245.0,66239.0,0.2823085]
[1718609875086,0.150955,66245.0,66242.0,0.0506]
[1718609876145,0.07604389,66246.0,66242.0,0.0506]
[1718609876300,0.31320392,66245.0,66242.0,0.10951935]
[1718609876520,0.31406392,66245.0,66242.0,0.10951935]
[1718609876717,0.00186,66245.0,66242.0,0.10951935]
[1718609877529,0.00186,66245.0,66244.0,0.603828]
[1718609877741,0.00186,66245.0,66244.0,0.892685]
[1718609877969,0.00386,66245.0,66244.0,1.194599]
[1718609878191,0.00386,66245.0,66244.0,1.33986929]
[1718609878590,0.00386,66245.0,66244.0,1.31986929]
[1718609878823,0.00386,66245.0,66244.0,1.46816956]
[1718609878992,0.00386,66245.0,66244.0,1.48816956]
[1718609879373,0.00286,66245.0,66244.0,3.61017135]
[1718609879828,0.00486,66245.0,66244.0,4.06208535]
[1718609880076,0.00486,66245.0,66244.0,4.322649]
[1718609880291,0.00086,66245.0,66244.0,4.321649]
[1718609880511,0.00086,66245.0,66244.0,4.327649]
[1718609880710,0.00186,66245.0,66244.0,4.327649]
[1718609880920,0.00186,66245.0,66244.0,4.40196995]
[1718609881159,0.00086,66245.0,66244.0,4.39596995]
[1718609881373,0.00186,66245.0,66244.0,4.42713995]
[1718609881586,0.00186,66245.0,66244.0,4.66174307]
[1718609881786,0.00186,66245.0,66244.0,4.58742212]
[1718609881996,0.00186,66245.0,66244.0,4.5975191]
[1718609882200,0.00186,66245.0,66244.0,4.55248221]
[1718609882419,0.00186,66245.0,66244.0,4.478119]
[1718609882619,0.00286,66245.0,66244.0,4.182205]
[1718609883036,0.00386,66245.0,66244.0,4.083205]
[1718609883250,0.00286,66245.0,66244.0,4.077205]
[1718609883461,0.00186,66245.0,66244.0,3.91664135]
[1718609883724,0.00386,66245.0,66244.0,3.41525735]
[1718609883931,0.00386,66245.0,66244.0,3.54155735]
[1718609885000,0.00386,66245.0,66244.0,3.59155735]
[1718609885655,0.00286,66245.0,66244.0,3.58555735]
[1718609886042,0.00386,66245.0,66244.0,3.59155735]
[1718609886278,0.00186,66245.0,66244.0,3.59052994]
[1718609886723,0.00286,66245.0,66244.0,0.53528767]
[1718609886945,0.00086,66245.0,66244.0,0.30304479]
[1718609887148,0.00086,66245.0,66244.0,1.21478679]
[1718609887359,0.01078148,66245.0,66244.0,1.36104105]
[1718609887591,0.01078148,66245.0,66244.0,1.51312884]
[1718609887815,0.00286,66245.0,66244.0,1.36104105]
[1718609888040,0.00286,66245.0,66244.0,1.34004105]
[1718609888252,0.00186,66245.0,66244.0,1.03812705]
[1718609888682,0.00186,66245.0,66244.0,1.17092705]
[1718609888931,0.00086,66245.0,66244.0,1.16492705]
[1718609889139,0.00186,66245.0,66244.0,1.16442705]
[1718609889463,0.00086,66245.0,66244.0,1.31051484]
[1718609889661,0.00186,66245.0,66244.0,1.31151484]
[1718609889871,0.00286,66245.0,66244.0,1.31751484]
[1718609890079,0.00186,66245.0,66244.0,1.31651484]
[1718609890290,0.00186,66245.0,66244.0,0.13225426]
[1718609890291,0.153814,66245.0,66244.0,0.13225426]
[1718609890499,0.153814,66245.0,66244.0,0.001]
[1718609890500,0.46264427,66245.0,66244.0,0.001]
[1718609890717,0.01078127,66245.0,66244.0,0.007]
[1718609891145,0.01078127,66245.0,66244.0,0.0680856]
[1718609891383,0.01078127,66245.0,66244.0,0.5209566]
[1718609891591,0.00978127,66245.0,66244.0,1.27587239]
[1718609891795,0.00978127,66245.0,66244.0,1.61007239]
[1718609892031,0.00186,66245.0,66244.0,1.91198639]
[1718609892220,0.00186,66245.0,66244.0,1.61007239]
[1718609892442,0.00186,66245.0,66244.0,1.91198639]
[1718609892655,0.00186,66245.0,66244.0,2.01198639]
[1718609892858,0.00186,66245.0,66244.0,2.00598639]
[1718609892859,0.00086,66245.0,66244.0,2.00598639]
[1718609893064,0.00286,66245.0,66244.0,2.01098639]
[1718609893286,0.00286,66245.0,66244.0,3.51098639]
[1718609893491,0.00086,66245.0,66244.0,3.50598639]
[1718609893696,0.00186,66245.0,66244.0,3.50698639]
[1718609894032,0.00286,66245.0,66244.0,3.51098639]
[1718609894199,0.00286,66245.0,66244.0,3.63628639]
[1718609894399,0.00286,66245.0,66244.0,3.63328639]
[1718609894785,0.00386,66245.0,66244.0,3.63728639]
[1718609897498,0.00386,66245.0,66244.0,3.33537239]
[1718609899309,0.00286,66245.0,66244.0,3.33137239]
[1718609899516,0.00286,66245.0,66244.0,1.83137239]
[1718609899732,0.00086,66245.0,66244.0,1.83037239]